lending/lending_fUSD_20240507
["ID","MTS","AMOUNT","RATE_DAILY","PERIOD"]
[326544509,1715100696487,-500.0,0.00024657,2]
[326544510,1715100696498,-363.67517594,0.00024657,2]
[326544511,1715100696517,-742.15,0.00024657,2]
[326544512,1715100696536,-500.0,0.00024657,2]
[326544513,1715100696548,-849.65,0.00024657,2]
[326544514,1715100696561,-500.0,0.00024657,2]
[326544515,1715100696608,-3107.68,0.00024657,2]
[326544516,1715100696619,-500.0,0.00024657,2]
[326544517,1715100696631,-3276.03,0.00024657,2]
[326544518,1715100696666,-503.431046,0.00024657,2]
[326544519,1715100696679,-240.261545,0.00024657,7]
[326544520,1715100696698,-151.0,0.00024657,7]
[326544521,1715100696709,-553.72,0.00024657,2]
[326544522,1715100696719,-151.0,0.00024657,7]
[326544523,1715100696745,-240.261545,0.00024657,7]
[326544524,1715100696760,-151.0,0.00024657,7]
[326544525,1715100696783,-240.261545,0.00024657,7]
[326544526,1715100696816,-567.58,0.00024657,2]
[326544527,1715100696829,-507.94671426,0.00024657,2]
[326544528,1715100696841,-500.0,0.00024657,2]
[326544529,1715100696854,-3453.67,0.00024657,2]
[326544530,1715100696871,-500.0,0.00024657,2]
[326544531,1715100696931,-654.05,0.00024657,2]
[326544532,1715100696942,-766.13,0.00024657,2]
[326544533,1715100696964,-6145.48,0.00024657,2]
[326544534,1715100696976,-1020.1,0.00024657,2]
[326544535,1715100696986,-21255.09,0.00024657,2]
[326544536,1715100697001,-1426.13,0.00024657,2]
[326544537,1715100697054,-500.0,0.00024657,2]
[326544538,1715100697070,-500.0,0.00024657,2]
[326544539,1715100697092,-506.26070353,0.00024657,2]
[326544540,1715100697111,-552.98,0.00024657,2]
[326544541,1715100697161,-240.261545,0.00024657,7]
[326544542,1715100697172,-240.261545,0.00024657,7]
[326544543,1715100697183,-500.0,0.00024657,2]
[326544544,1715100697197,-604.91149822,0.00024657,2]
[326544545,1715100697228,-500.0,0.00024657,2]
[326544546,1715100697240,-240.261545,0.00024657,7]
[326544547,1715100697249,-10028.3,0.00024657,2]
[326544548,1715100697260,-1029.15,0.00024657,2]
[326544549,1715100697285,-1191.0,0.00024657,2]
[326544550,1715100697297,-1648.62,0.00024657,2]
[326544551,1715100697309,-506.82119094,0.00024657,2]
[326544552,1715100697331,-500.0,0.00024657,2]
[326544553,1715100697347,-500.0,0.00024657,2]
[326544554,1715100697363,-159.413091,0.00024657,7]
[326544555,1715100697416,-500.0,0.00024657,2]
[326544556,1715100697427,-159.413091,0.00024657,7]
[326544557,1715100697439,-159.413091,0.00024657,7]
[326544558,1715100697456,-2857.63,0.00024657,2]
[326544559,1715100697470,-161.92534807,0.00024657,2]
[326544560,1715100697494,-500.0,0.00024657,2]
[326544561,1715100697507,-500.0,0.00024657,2]
[326544562,1715100697518,-500.0,0.00024657,2]
[326544563,1715100697532,-1844.38,0.00024657,2]
[326544564,1715100697552,-658.88,0.00024657,2]
[326544565,1715100697563,-159.413091,0.00024657,7]
[326544566,1715100697589,-159.413091,0.00024657,7]
[326544567,1715100697612,-5581.37,0.00024657,2]
[326544568,1715100697625,-2162.51,0.00024657,2]
[326544569,1715100697641,-630.52,0.00024657,2]
[326544570,1715100697657,-159.413093,0.00024657,7]
[326544571,1715100697678,-507.55826959,0.00024657,2]
[326544572,1715100697695,-892.7,0.00024657,2]
[326544573,1715100697707,-500.0,0.00024657,2]
[326544574,1715100697748,-2702.27,0.00024657,2]
[326544575,1715100697759,-1465.18,0.00024657,2]
[326544576,1715100697813,-500.0,0.00024657,2]
[326544577,1715100697832,-2382.14,0.00024657,2]
[326544578,1715100697842,-500.0,0.00024657,2]
[326544579,1715100697860,-6469.65263441,0.00024657,2]
[326544580,1715100697901,-1048.0,0.00024657,2]
[326544581,1715100698133,-2069.01736559,0.00024657,2]
[326544582,1715100698145,-595.98,0.00024657,2]
[326544583,1715100698156,-500.0,0.00024657,2]
[326544584,1715100698167,-19.15594503,0.00024657,2]
[326544585,1715100698180,-486.6044534,0.00024657,2]
[326544586,1715100698193,-181.56236132,0.00024657,2]
[326544587,1715100698223,-1602.31763868,0.00024657,2]
[326544588,1715100698235,-500.0,0.00024657,2]
[326544589,1715100698246,-500.0,0.00024657,2]
[326544590,1715100698268,-1228.8,0.00024657,2]
[326544591,1715100698281,-500.0,0.00024657,2]
[326544592,1715100698298,-507.74250718,0.00024657,2]
[326544593,1715100698315,-504.36560674,0.00024657,2]
[326544594,1715100698329,-506.3390962,0.00024657,2]
[326544595,1715100698341,-1315.3,0.00024657,2]
[326544596,1715100698355,-500.0,0.00024657,2]
[326544597,1715100698366,-2838.38,0.00024657,2]
[326544598,1715100698376,-857.45,0.00024657,2]
[326544599,1715100698387,-2516.16,0.00024657,2]
[326544600,1715100698403,-500.0,0.00024657,2]
[326544601,1715100698414,-500.0,0.00024657,2]
[326544602,1715100698427,-590.74,0.00024657,2]
[326544603,1715100698437,-500.0,0.00024657,2]
[326544604,1715100698462,-2248.38,0.00024657,2]
[326544605,1715100698475,-2796.49,0.00024657,2]
[326544606,1715100698487,-500.0,0.00024657,2]
[326544607,1715100698504,-507.17901489,0.00024657,2]
[326544608,1715100698522,-759.73,0.00024657,2]
[326544609,1715100698559,-500.0,0.00024657,2]
[326544610,1715100698570,-515.1939067,0.00024657,2]
[326544611,1715100698589,-883.15,0.00024657,2]
[326544612,1715100698600,-1564.15,0.00024657,2]
[326544613,1715100698621,-506.93889629,0.00024657,2]
[326544614,1715100698642,-506.01609527,0.00024657,2]
[326544615,1715100698654,-500.0,0.00024657,2]
[326544616,1715100698677,-1226.26,0.00024657,2]
[326544617,1715100698690,-3884.79,0.00024657,2]
[326544618,1715100698701,-536.92,0.00024657,2]
[326544619,1715100698711,-554.79,0.00024657,2]
[326544620,1715100698731,-500.0,0.00024657,2]
[326544621,1715100698742,-536.48568883,0.00024657,2]
[326544622,1715100698758,-4991.7,0.00024657,2]
[326544623,1715100698780,-9672.4,0.00024657,2]
[326544624,1715100698793,-4438.12,0.00024657,2]
[326544625,1715100698804,-506.50608764,0.00024657,2]
[326544626,1715100698840,-509.66280199,0.00024657,2]
[326544627,1715100698856,-500.0,0.00024657,2]
[326544628,1715100698867,-500.0,0.00024657,2]
[326544629,1715100698881,-500.0,0.00024657,2]
[326544630,1715100698893,-960.52,0.00024657,2]
[326544631,1715100698903,-627.83,0.00024657,2]
[326544632,1715100698916,-1771.9,0.00024657,2]
[326544633,1715100698926,-1771.9,0.00024657,2]
[326544634,1715100698968,-1771.9,0.00024657,2]
[326544635,1715100698990,-4573.52,0.00024657,2]
[326544636,1715100699005,-500.0,0.00024657,2]
[326544637,1715100699023,-3690.9,0.00024657,2]
[326544638,1715100699034,-1771.9,0.00024657,2]
[326544639,1715100699044,-500.0,0.00024657,2]
[326544640,1715100699068,-1771.9,0.00024657,2]
[326544641,1715100699110,-1771.9,0.00024657,2]
[326544642,1715100699123,-1771.9,0.00024657,2]
[326544643,1715100699137,-500.0,0.00024657,2]
[326544644,1715100699150,-1771.9,0.00024657,2]
[326544645,1715100699164,-623.68,0.00024657,2]
[326544646,1715100699186,-1771.9,0.00024657,2]
[326544647,1715100699423,-1771.9,0.00024657,2]
[326544648,1715100699436,-735.18,0.00024657,2]
[326544649,1715100699456,-1771.9,0.00024657,2]
[326544650,1715100699467,-500.0,0.00024657,2]
[326544651,1715100699483,-500.0,0.00024657,2]
[326544652,1715100699500,-1771.9,0.00024657,2]
[326544653,1715100699511,-513.46,0.00024657,2]
[326544654,1715100699538,-1366.51,0.00024657,2]
[326544655,1715100699564,-708.49,0.00024657,2]
[326544656,1715100699578,-500.0,0.00024657,2]
[326544657,1715100699591,-1911.81,0.00024657,2]
[326544658,1715100699605,-1867.05,0.00024657,2]
[326544659,1715100699631,-500.0,0.00024657,2]
[326544660,1715100699642,-1771.9,0.00024657,2]
[326544661,1715100699668,-1771.9,0.00024657,2]
[326544662,1715100699682,-1771.9,0.00024657,2]
[326544663,1715100699705,-1771.9,0.00024657,2]
[326544664,1715100699727,-500.0,0.00024657,2]
[326544665,1715100699752,-500.0,0.00024657,2]
[326544666,1715100699765,-1771.9,0.00024657,2]
[326544667,1715100699787,-1448.39,0.00024657,2]
[326544668,1715100699798,-1794.17,0.00024657,2]
[326544669,1715100699832,-1771.9,0.00024657,2]
[326544670,1715100699842,-1771.9,0.00024657,2]
[326544671,1715100699855,-1771.9,0.00024657,2]
[326544672,1715100699865,-1771.9,0.00024657,2]
[326544673,1715100699876,-500.0,0.00024657,2]
[326544674,1715100699893,-1771.9,0.00024657,2]
[326544675,1715100699904,-500.0,0.00024657,2]
[326544676,1715100699919,-1771.9,0.00024657,2]
[326544677,1715100699930,-1771.98,0.00024657,2]
[326544678,1715100699941,-500.0,0.00024657,2]
[326544679,1715100699953,-711.31,0.00024657,2]
[326544680,1715100699966,-3155.93,0.00024657,2]
[326544681,1715100699992,-506.60498396,0.00024657,2]
[326544682,1715100700023,-500.0,0.00024657,2]
[326544683,1715100700045,-500.0,0.00024657,2]
[326544684,1715100700061,-504.93728855,0.00024657,2]
[326544685,1715100700076,-500.0,0.00024657,2]
[326544686,1715100700099,-3270.24,0.00024657,2]
[326544687,1715100700121,-8727.16,0.00024657,2]
[326544688,1715100700131,-1613.73,0.00024657,2]
[326544689,1715100700142,-508.21286934,0.00024657,2]
[326544690,1715100700156,-500.0,0.00024657,2]
[326544691,1715100700176,-2251.43,0.00024657,2]
[326544692,1715100700196,-500.0,0.00024657,2]
[326544693,1715100700209,-500.0,0.00024657,2]
[326544694,1715100700251,-1922.71,0.00024657,2]
[326544695,1715100700263,-2514.52,0.00024657,2]
[326544696,1715100700283,-510.31,0.00024657,2]
[326544697,1715100700294,-506.17086463,0.00024657,2]
[326544698,1715100700312,-500.0,0.00024657,2]
[326544699,1715100700323,-688.77,0.00024657,2]
[326544700,1715100700335,-505.10259231,0.00024657,2]
[326544701,1715100700346,-507.50088524,0.00024657,2]
[326544702,1715100700360,-500.0,0.00024657,2]
[326544703,1715100700373,-505.08309051,0.00024657,2]
[326544704,1715100700397,-500.0,0.00024657,2]
[326544705,1715100700428,-766.66,0.00024657,2]
[326544706,1715100700439,-500.0,0.00024657,2]
[326544707,1715100700450,-4244.15,0.00024657,2]
[326544708,1715100700470,-818.11,0.00024657,2]
[326544709,1715100700489,-500.0,0.00024657,2]
[326544710,1715100700501,-500.0,0.00024657,2]
[326544711,1715100700520,-622.3606328,0.00024657,2]
[326544712,1715100700531,-1691.89,0.00024657,2]
[326544713,1715100700541,-507.71576788,0.00024657,2]
[326544714,1715100700585,-500.0,0.00024657,2]
[326544715,1715100700595,-844.84,0.00024657,2]
[326544716,1715100700606,-500.0,0.00024657,2]
[326544717,1715100700618,-500.0,0.00024657,2]
[326544718,1715100700652,-500.0,0.00024657,2]
[326544719,1715100700687,-500.0,0.00024657,2]
[326544720,1715100700698,-793.23,0.00024657,2]
[326544721,1715100700710,-500.0,0.00024657,2]
[326544722,1715100700721,-500.0,0.00024657,2]
[326544723,1715100700739,-891.61,0.00024657,2]
[326544724,1715100700751,-1315.31,0.00024657,2]
[326544725,1715100700761,-579.56,0.00024657,2]
[326544726,1715100700776,-1113.24,0.00024657,2]
[326544727,1715100700796,-805.88,0.00024657,2]
[326544728,1715100700811,-500.0,0.00024657,2]
[326544729,1715100700831,-1888.59,0.00024657,2]
[326544730,1715100700847,-3463.82,0.00024657,2]
[326544731,1715100700900,-33618.46,0.00024657,2]
[326544732,1715100700912,-990.25,0.00024657,2]
[326544733,1715100700928,-4681.05,0.00024657,2]
[326544734,1715100700939,-206.18256163,0.00024657,2]
[326544735,1715100700958,-3393.58,0.00024657,2]
[326544736,1715100700979,-772.07,0.00024657,2]
[326544737,1715100700990,-507.9073163,0.00024657,2]
[326544738,1715100701000,-500.0,0.00024657,2]
[326544739,1715100701012,-507.17822427,0.00024657,2]
[326544740,1715100701026,-500.0,0.00024657,2]
[326544741,1715100701039,-500.0,0.00024657,2]
[326544742,1715100701050,-752.83,0.00024657,2]
[326544743,1715100701062,-500.0,0.00024657,2]
[326544744,1715100701076,-500.0,0.00024657,2]
[326544745,1715100701136,-2747.91,0.00024657,2]
[326544746,1715100701151,-507.62109853,0.00024657,2]
[326544747,1715100701217,-500.0,0.00024657,2]
[326544748,1715100701245,-500.0,0.00024657,2]
[326544749,1715100701257,-213.14211932,0.00024657,2]
[326544750,1715100701285,-514.91727273,0.00024657,2]
[326544751,1715100701308,-797.97,0.00024657,2]
[326544752,1715100701340,-16505.91,0.00024657,2]
[326544753,1715100701351,-500.0,0.00024657,2]
[326544754,1715100701362,-729.09,0.00024657,2]
[326544755,1715100701376,-500.0,0.00024657,2]
[326544756,1715100701390,-500.0,0.00024657,2]
[326544757,1715100701413,-500.0,0.00024657,2]
[326544758,1715100701430,-500.0,0.00024657,2]
[326544759,1715100701440,-2512.72,0.00024657,2]
[326544760,1715100701452,-1041.85,0.00024657,2]
[326544761,1715100701489,-500.0,0.00024657,2]
[326544762,1715100701510,-500.0,0.00024657,2]
[326544763,1715100701528,-500.0,0.00024657,2]
[326544764,1715100701552,-500.0,0.00024657,2]
[326544765,1715100701570,-2771.26,0.00024657,2]
[326544766,1715100701592,-500.0,0.00024657,2]
[326544767,1715100701605,-3423.49,0.00024657,2]
[326544768,1715100701625,-2106.13,0.00024657,2]
[326544769,1715100701635,-505.56468136,0.00024657,2]
[326544770,1715100701646,-505.01175295,0.00024657,2]
[326544771,1715100701661,-1424.95,0.00024657,2]
[326544772,1715100701700,-507.14562345,0.00024657,2]
[326544773,1715100701710,-3378.37,0.00024657,2]
[326544774,1715100701722,-500.0,0.00024657,2]
[326544775,1715100701735,-500.0,0.00024657,2]
[326544776,1715100701747,-500.0,0.00024657,2]
[326544777,1715100701757,-500.0,0.00024657,2]
[326544778,1715100701768,-500.0,0.00024657,2]
[326544779,1715100701783,-500.0,0.00024657,2]
[326544780,1715100701802,-2218.45,0.00024657,2]
[326544781,1715100701815,-3243.41,0.00024657,2]
[326544782,1715100701827,-500.0,0.00024657,2]
[326544783,1715100701838,-551.15,0.00024657,2]
[326544784,1715100701860,-651.16,0.00024657,2]
[326544785,1715100701874,-500.0,0.00024657,2]
[326544786,1715100701916,-7836.35,0.00024657,2]
[326544787,1715100701927,-4353.47,0.00024657,2]
[326544788,1715100701940,-870.97,0.00024657,2]
[326544789,1715100701953,-8683.47,0.00024657,2]
[326544790,1715100701977,-3063.67,0.00024657,2]
[326544791,1715100701987,-2590.75,0.00024657,2]
[326544792,1715100702004,-157.06830723,0.00024657,2]
[326544793,1715100702017,-3171.55,0.00024657,2]
[326544794,1715100702028,-2148.67,0.00024657,2]
[326544795,1715100702049,-10725.39,0.00024657,2]
[326544796,1715100702074,-2843.52,0.00024657,2]
[326544797,1715100702099,-3816.34,0.00024657,2]
[326544798,1715100702123,-504.42841968,0.00024657,2]
[326544799,1715100702137,-4008.86,0.00024657,2]
[326544800,1715100702160,-1472.49,0.00024657,2]
[326544801,1715100702172,-1790.41,0.00024657,4]
[326544802,1715100702214,-2341.57,0.00024657,2]
[326544803,1715100702228,-3493.95,0.00024657,2]
[326544804,1715100702241,-5211.98,0.00024657,2]
[326544805,1715100702251,-6071.3,0.00024657,2]
[326544806,1715100702262,-500.0,0.00024657,2]
[326544807,1715100702274,-2448.68,0.00024657,2]
[326544808,1715100702286,-6296.84,0.00024657,2]
[326544809,1715100702300,-500.0,0.00024657,2]
[326544810,1715100702313,-4238.95,0.00024657,2]
[326544811,1715100702353,-2446.71,0.00024657,2]
[326544812,1715100702397,-1257.29,0.00024657,2]
[326544813,1715100702423,-200.0,0.00024658,2]
[326544814,1715100702434,-196.38,0.00024658,2]
[326544815,1715100702445,-1486.26,0.00024658,2]
[326544816,1715100702455,-500.0,0.00024659,2]
[326544817,1715100702468,-500.0,0.00024668,2]
[326544818,1715100702486,-500.0,0.00024677,2]
[326544819,1715100702514,-500.0,0.00024686,2]
[326544820,1715100702525,-500.0,0.00024688,14]
[326544821,1715100702536,-150.0,0.00024694,4]
[326544822,1715100702547,-500.0,0.00024695,2]
[326544823,1715100702560,-3357.74516345,0.000247,2]
[326544824,1715100702570,-500.0,0.00024703,2]
[326544825,1715100702625,-500.0,0.00024712,2]
[326544826,1715100702636,-500.0,0.00024721,2]
[326544827,1715100702686,-500.0,0.0002473,2]
[326544828,1715100702699,-500.0,0.00024739,2]
[326544829,1715100702710,-152.0,0.00024743,7]
[326544830,1715100702723,-500.0,0.00024747,2]
[326544831,1715100702746,-173.050711,0.00024748,2]
[326544832,1715100702758,-500.0,0.00024756,2]
[326544833,1715100702775,-155.95989426,0.0002476,2]
[326544834,1715100702789,-500.0,0.00024765,2]
[326544835,1715100702800,-500.0,0.00024774,2]
[326544836,1715100702810,-500.0,0.00024783,2]
[326544837,1715100702826,-500.0,0.00024791,2]
[326544838,1715100702843,-500.0,0.000248,2]
[326544839,1715100702854,-500.0,0.00024809,2]
[326544840,1715100702864,-302.0,0.0002481,4]
[326544841,1715100702876,-500.0,0.00024818,2]
[326544842,1715100702886,-500.0,0.00024827,2]
[326544843,1715100702897,-500.0,0.00024835,2]
[326544844,1715100702908,-500.0,0.00024844,2]
[326544845,1715100702918,-500.0,0.00024853,2]
[326544846,1715100702930,-500.0,0.00024862,2]
[326544847,1715100702947,-155.95989426,0.00024866,2]
[326544848,1715100702958,-501.567033,0.0002487,2]
[326544849,1715100702973,-500.0,0.00024871,2]
[326544850,1715100703012,-500.0,0.00024879,2]
[326544851,1715100703031,-741.0,0.0002488,15]
[326544852,1715100703047,-1059.0,0.0002488,15]
[326544853,1715100703064,-500.0,0.00024888,2]
[326544854,1715100703099,-741.0,0.0002489,15]
[326544855,1715100703112,-1059.0,0.0002489,15]
[326544856,1715100703127,-500.0,0.00024897,2]
[326544857,1715100703154,-217878.04407163,0.000249,5]
[326544858,1715100703164,-3000.0,0.000249,2]
[326544859,1715100703193,-500.0,0.00024906,2]
[326544860,1715100703217,-150.0,0.00024906,4]
[326544861,1715100703245,-154.77704815,0.00024907,2]
[326544862,1715100703256,-500.0,0.00024915,2]
[326544863,1715100703271,-5026.89162971,0.00024917,2]
[326544864,1715100703281,-5000.0,0.00024917,2]
[326544865,1715100703293,-5000.0,0.00024917,2]
[326544866,1715100703306,-500.0,0.00024923,2]
[326544867,1715100703323,-460.41551454,0.00024927,2]
[326544868,1715100703333,-252899.93577033,0.00024928,2]
[326544869,1715100703353,-542548.88902625,0.00024928,2]
[326544870,1715100703363,-155.0,0.00024929,2]
[326544871,1715100703386,-460.41551454,0.0002493,2]
[326544872,1715100703410,-500.0,0.00024931,2]
[326544873,1715100703422,-500.0,0.00024931,2]
[326544874,1715100703433,-500.0,0.00024931,2]
[326544875,1715100703444,-500.0,0.00024931,2]
[326544876,1715100703457,-981.39,0.00024931,2]
[326544877,1715100703477,-500.0,0.00024931,2]
[326544878,1715100703488,-554.22236737,0.00024931,2]
[326544879,1715100703505,-770.25,0.00024931,2]
[326544880,1715100703515,-714.86,0.00024931,2]
[326544881,1715100703568,-1038.53,0.00024931,2]
[326544882,1715100703593,-500.0,0.00024931,2]
[326544883,1715100703604,-500.0,0.00024931,2]
[326544884,1715100703614,-500.0,0.00024931,2]
[326544885,1715100703625,-500.0,0.00024931,2]
[326544886,1715100703635,-500.0,0.00024931,2]
[326544887,1715100703657,-500.0,0.00024931,2]
[326544888,1715100703693,-531.69,0.00024931,2]
[326544889,1715100703703,-924.39,0.00024931,2]
[326544890,1715100703720,-623.94,0.00024931,2]
[326544891,1715100703731,-500.0,0.00024931,2]
[326544892,1715100703742,-740.2,0.00024931,2]
[326544893,1715100703795,-510.22533413,0.00024931,2]
[326544894,1715100703805,-504.79295797,0.00024931,2]
[326544895,1715100703833,-507.27501198,0.00024931,2]
[326544896,1715100703874,-649.43,0.00024931,2]
[326544897,1715100703905,-1098.64,0.00024931,2]
[326544898,1715100703916,-500.0,0.00024931,2]
[326544899,1715100703927,-508.00418419,0.00024931,2]
[326544900,1715100703956,-155.52829306,0.00024931,2]
[326544901,1715100703967,-725.44,0.00024931,2]
[326544902,1715100703981,-580.17,0.00024931,2]
[326544903,1715100703991,-500.0,0.00024931,2]
[326544904,1715100704045,-876.37,0.00024931,2]
[326544905,1715100704071,-500.0,0.00024931,2]
[326544906,1715100704083,-547.6,0.00024931,2]
[326544907,1715100704096,-1047.34,0.00024931,2]
[326544908,1715100704106,-500.0,0.00024931,2]
[326544909,1715100704146,-500.0,0.00024931,2]
[326544910,1715100704166,-858.69,0.00024931,2]
[326544911,1715100704191,-500.0,0.00024931,2]
[326544912,1715100704221,-500.0,0.00024931,2]
[326544913,1715100704234,-500.0,0.00024931,2]
[326544914,1715100704245,-500.93,0.00024931,2]
[326544915,1715100704268,-500.0,0.00024931,2]
[326544916,1715100704286,-500.0,0.00024931,2]
[326544917,1715100704305,-506.20726544,0.00024931,2]
[326544918,1715100704321,-517.3873196,0.00024931,2]
[326544919,1715100704337,-500.0,0.00024931,2]
[326544920,1715100704353,-500.0,0.00024931,2]
[326544921,1715100704363,-500.0,0.00024931,2]
[326544922,1715100704373,-993.71,0.00024931,2]
[326544923,1715100704428,-500.0,0.00024931,2]
[326544924,1715100704445,-1112.29,0.00024931,2]
[326544925,1715100704456,-500.0,0.00024931,2]
[326544926,1715100704467,-500.0,0.00024931,2]
[326544927,1715100704487,-608.9,0.00024931,2]
[326544928,1715100704497,-744.3,0.00024931,2]
[326544929,1715100704524,-769.36,0.00024931,2]
[326544930,1715100704535,-1288.3,0.00024931,2]
[326544931,1715100704560,-500.0,0.00024931,2]
[326544932,1715100704574,-503.85265273,0.00024931,2]
[326544933,1715100704601,-1986.0,0.00024931,2]
[326544934,1715100704612,-500.0,0.00024931,2]
[326544935,1715100704623,-1221.93,0.00024931,2]
[326544936,1715100704641,-500.0,0.00024931,2]
[326544937,1715100704653,-684.76,0.00024931,2]
[326544938,1715100704663,-500.0,0.00024931,2]
[326544939,1715100704687,-872.23,0.00024931,2]
[326544940,1715100704698,-500.0,0.00024931,2]
[326544941,1715100704712,-509.33,0.00024931,2]
[326544942,1715100704737,-500.0,0.00024931,2]
[326544943,1715100704749,-1149.17,0.00024931,2]
[326544944,1715100704764,-500.0,0.00024931,2]
[326544945,1715100704776,-500.0,0.00024931,2]
[326544946,1715100704786,-505.44084372,0.00024931,2]
[326544947,1715100704799,-504.89028478,0.00024931,2]
[326544948,1715100704839,-500.0,0.00024931,2]
[326544949,1715100704860,-706.36,0.00024931,2]
[326544950,1715100704874,-868.22,0.00024931,2]
[326544951,1715100704885,-502.86475268,0.00024931,2]
[326544952,1715100704895,-544.17,0.00024931,2]
[326544953,1715100704905,-515.33,0.00024931,2]
[326544954,1715100704932,-500.0,0.00024931,2]
[326544955,1715100704951,-500.0,0.00024931,2]
[326544956,1715100704963,-500.0,0.00024931,2]
[326544957,1715100704975,-1022.91,0.00024931,2]
[326544958,1715100704994,-287.14195769,0.00024931,2]
[326544959,1715100705004,-500.0,0.00024931,2]
[326544960,1715100705014,-881.3,0.00024931,2]
[326544961,1715100705029,-516.99852088,0.00024931,2]
[326544962,1715100705048,-500.0,0.00024931,2]
[326544963,1715100705062,-500.0,0.00024931,2]
[326544964,1715100705079,-500.0,0.00024931,2]
[326544965,1715100705089,-500.0,0.00024931,2]
[326544966,1715100705100,-669.34,0.00024931,2]
[326544967,1715100705112,-541.81,0.00024931,2]
[326544968,1715100705127,-522.4,0.00024931,2]
[326544969,1715100705137,-500.0,0.00024931,2]
[326544970,1715100705166,-500.0,0.00024931,2]
[326544971,1715100705192,-500.0,0.00024931,2]
[326544972,1715100705203,-1030.69,0.00024931,2]
[326544973,1715100705214,-500.0,0.00024931,2]
[326544974,1715100705226,-500.0,0.00024931,2]
[326544975,1715100705238,-500.0,0.00024931,2]
[326544976,1715100705248,-500.0,0.00024931,2]
[326544977,1715100705266,-500.0,0.00024931,2]
[326544978,1715100705276,-1512.55,0.00024931,2]
[326544979,1715100705286,-500.0,0.00024931,2]
[326544980,1715100705299,-500.0,0.00024931,2]
[326544981,1715100705309,-491.28332117,0.00024931,2]
[326544982,1715100705319,-887.83,0.00024931,2]
[326544983,1715100705340,-500.0,0.00024931,2]
[326544984,1715100705355,-976.56,0.00024931,2]
[326544985,1715100705367,-738.65,0.00024931,2]
[326544986,1715100705384,-500.0,0.00024931,2]
[326544987,1715100705395,-500.0,0.00024931,2]
[326544988,1715100705408,-793.34,0.00024931,2]
[326544989,1715100705429,-836.74,0.00024931,2]
[326544990,1715100705440,-500.0,0.00024931,2]
[326544991,1715100705451,-1470.0,0.00024931,2]
[326544992,1715100705475,-500.0,0.00024931,2]
[326544993,1715100705489,-500.0,0.00024931,2]
[326544994,1715100705503,-500.0,0.00024931,2]
[326544995,1715100705513,-500.0,0.00024931,2]
[326544996,1715100705564,-500.0,0.00024931,2]
[326544997,1715100705575,-878.28,0.00024931,2]
[326544998,1715100705594,-566.05,0.00024931,2]
[326544999,1715100705606,-1145.58,0.00024931,2]
[326545000,1715100705643,-500.0,0.00024931,2]
[326545001,1715100705653,-500.0,0.00024931,2]
[326545002,1715100705681,-200.0,0.00024931,2]
[326545003,1715100705700,-1024.21,0.00024931,2]
[326545004,1715100705710,-150.0,0.00024931,2]
[326545005,1715100705721,-500.0,0.00024931,2]
[326545006,1715100705732,-500.0,0.00024931,2]
[326545007,1715100705752,-506.45584624,0.00024931,2]
[326545008,1715100705763,-500.0,0.00024931,2]